bitfinex-derivatives/quotes_BTCF0:USTF0_20250528
["timestamp","ask_amount","ask_price","bid_price","bid_amount"]
[1748463611424,1.56997183,107140.0,107130.0,0.00024975]
[1748463611724,1.51997183,107140.0,107130.0,0.00036975]
[1748463611926,1.3069703,107140.0,107130.0,0.00024975]
[1748463612118,1.3069703,107140.0,107130.0,0.00036975]
[1748463612426,1.3079703,107140.0,107130.0,0.00036975]
[1748463612627,0.778,107140.0,107130.0,0.40001898]
[1748463612919,0.4672,107140.0,107130.0,0.18701745]
[1748463613123,1.0146303,107140.0,107130.0,0.24581745]
[1748463613513,1.57097183,107140.0,107130.0,0.00036975]
[1748463613831,0.0466672,107120.0,107100.0,0.2333605]
[1748463614016,1.74552403,107110.0,107100.0,0.186686]
[1748463614211,2.18888433,107110.0,107100.0,0.1867]
[1748463614515,0.1867,107100.0,107090.0,0.00062266]
[1748463614717,1.17400069,107100.0,107090.0,0.1867174]
[1748463614909,1.25168316,107100.0,107090.0,0.1867174]
[1748463615110,0.79352316,107100.0,107090.0,0.2403374]
[1748463615415,0.79352316,107100.0,107090.0,0.2953374]
[1748463615416,1.30188316,107100.0,107090.0,0.2953374]
[1748463615616,0.14012316,107100.0,107090.0,0.86913893]
[1748463615913,0.14012316,107100.0,107090.0,0.6661374]
[1748463616116,0.14012316,107100.0,107090.0,0.93603893]
[1748463616318,0.50092316,107100.0,107090.0,0.3052174]
[1748463616518,0.50092316,107100.0,107090.0,0.3093374]
[1748463616714,1.22046469,107100.0,107090.0,0.00412]
[1748463616916,1.58046469,107100.0,107090.0,0.1907174]
[1748463617113,1.58046469,107100.0,107090.0,0.2477374]
[1748463617319,1.36746316,107100.0,107090.0,0.2477374]
[1748463617518,1.36746316,107100.0,107090.0,0.2517374]
[1748463618024,0.36012316,107100.0,107090.0,0.2517374]
[1748463618216,0.13012316,107100.0,107090.0,0.87923893]
[1748463618417,6e-08,107100.0,107090.0,1.64031493]
[1748463618620,6e-08,107100.0,107090.0,1.75295493]
[1748463618925,6e-08,107100.0,107090.0,3.15957893]
[1748463619229,0.00451561,107100.0,107090.0,2.96957893]
[1748463619429,0.19121551,107100.0,107090.0,0.4222174]
[1748463619722,0.19121551,107100.0,107090.0,0.06502]
[1748463619723,1.09501704,107100.0,107090.0,0.06502]
[1748463619925,1.59909304,107100.0,107090.0,0.008]
[1748463620131,1.59909304,107100.0,107070.0,0.0014009]
[1748463620132,0.1867348,107080.0,107070.0,0.0014009]
[1748463620430,0.186769,107060.0,107050.0,0.3782022]
[1748463620729,0.506769,107060.0,107050.0,0.2403865]
[1748463620915,0.506769,107060.0,107050.0,0.81418803]
[1748463620916,0.32024975,107060.0,107050.0,0.81418803]
[1748463621123,0.86781775,107060.0,107050.0,0.2405065]
[1748463621714,0.86781775,107060.0,107050.0,0.2987065]
[1748463621927,1.66069928,107060.0,107050.0,0.05832]
[1748463622226,1.71069928,107060.0,107050.0,0.2451032]
[1748463622425,1.51168455,107060.0,107050.0,0.0582]
[1748463622624,1.51168455,107060.0,107040.0,0.00014017]
[1748463622625,0.2367832,107050.0,107040.0,0.00014017]
[1748463622816,1.20953448,107050.0,107040.0,0.00014017]
[1748463623017,1.08995295,107050.0,107040.0,0.00026017]
[1748463623226,1.35695448,107050.0,107040.0,0.18705747]
[1748463623423,0.86374975,107050.0,107040.0,0.18693747]
[1748463623630,0.93114975,107050.0,107040.0,0.18705747]
[1748463623826,0.57034975,107050.0,107040.0,0.29485747]
[1748463624127,5e-08,107050.0,107040.0,1.69508053]
[1748463624351,5e-08,107050.0,107040.0,1.34527747]
[1748463624628,5e-08,107050.0,107040.0,2.02128053]
[1748463624820,5e-08,107050.0,107040.0,1.692879]
[1748463625019,5e-08,107050.0,107040.0,2.06195747]
[1748463625224,5e-08,107050.0,107040.0,3.56195747]
[1748463625427,5e-08,107050.0,107040.0,2.97987747]
[1748463625626,5e-08,107050.0,107040.0,3.56351747]
[1748463625825,5e-08,107050.0,107040.0,2.97775747]
[1748463626133,5e-08,107050.0,107040.0,3.058319]
[1748463626327,0.18678085,107050.0,107040.0,0.73433747]
[1748463626524,0.30638963,107060.0,107050.0,0.1867808]
[1748463626525,0.7440611,107060.0,107050.0,0.1867808]
[1748463626726,0.7440611,107060.0,107050.0,0.2963808]
[1748463626727,0.36,107060.0,107050.0,0.2963808]
[1748463626928,0.81621019,107070.0,107060.0,0.1867634]
[1748463627127,0.81621019,107070.0,107060.0,0.2963634]
[1748463627128,1.18621019,107070.0,107060.0,0.2963634]
[1748463627629,1.18621019,107070.0,107060.0,0.2964834]
[1748463627835,1.24151019,107070.0,107060.0,0.2964834]
[1748463628032,0.19533051,107070.0,107060.0,0.87028493]
[1748463628238,0.19633051,107070.0,107060.0,0.93628493]
[1748463628630,0.19633051,107070.0,107060.0,1.19628493]
[1748463628631,9e-08,107070.0,107060.0,1.19628493]
[1748463628933,9e-08,107070.0,107060.0,1.28968493]
[1748463629134,9e-08,107070.0,107060.0,1.87448493]
[1748463629349,9e-08,107070.0,107060.0,1.9114834]
[1748463629632,0.00140158,107090.0,107080.0,0.1867288]
[1748463629835,7e-08,107090.0,107080.0,1.36170318]
[1748463630020,7e-08,107090.0,107080.0,1.68852718]
[1748463630225,0.00465572,107100.0,107090.0,0.1867113]
[1748463630226,0.00014017,107100.0,107090.0,0.1867113]
[1748463630421,0.01389042,107110.0,107100.0,0.1866939]
[1748463630723,0.23468479,107140.0,107130.0,0.1866416]
[1748463630929,0.12618702,107140.0,107130.0,0.55569135]
[1748463631121,0.08,107140.0,107130.0,0.61109135]
[1748463631325,0.20123887,107150.0,107140.0,0.1866242]
[1748463631532,0.39123887,107150.0,107140.0,0.81607548]
[1748463631837,0.8038081,107180.0,107170.0,0.1825737]
[1748463632038,1.62327713,107180.0,107170.0,0.18282345]
[1748463632226,1.88674911,107180.0,107170.0,0.00024975]
[1748463632429,0.1865747,107170.0,107160.0,0.28701812]
[1748463632736,0.6448747,107170.0,107160.0,0.34381812]
[1748463632928,0.6448747,107170.0,107160.0,0.34393812]
[1748463633127,1.31391571,107170.0,107160.0,0.05706017]
[1748463633333,0.2799341,107150.0,107140.0,0.186627]
[1748463633530,0.8040782,107150.0,107140.0,0.298827]
[1748463633733,0.21,107150.0,107140.0,0.659627]
[1748463633932,0.3966095,107150.0,107140.0,0.659627]
[1748463634229,0.3966095,107150.0,107140.0,0.669747]
[1748463634230,0.21,107150.0,107140.0,0.669747]
[1748463634432,0.7574095,107150.0,107140.0,0.11232]
[1748463634631,1.17805051,107150.0,107140.0,0.00112]
[1748463634822,1.17805051,107150.0,107140.0,0.001]
[1748463635019,1.17805051,107150.0,107140.0,0.00112]
[1748463635225,0.186627,107140.0,107130.0,0.00014017]
[1748463635434,0.186627,107140.0,107130.0,0.18678457]
[1748463635435,0.4724,107140.0,107130.0,0.18678457]
[1748463635626,1.253667,107140.0,107130.0,0.24530457]
[1748463635830,1.253667,107140.0,107130.0,0.24490457]
[1748463635831,1.614467,107140.0,107130.0,0.24490457]
[1748463636233,1.614467,107140.0,107130.0,0.11666017]
[1748463636435,2.31604801,107140.0,107130.0,0.00026017]
[1748463636732,0.1866444,107130.0,107120.0,0.00140023]
[1748463636927,1.6852244,107130.0,107120.0,0.18806203]
[1748463637128,0.5401,107130.0,107120.0,0.18818203]
[1748463637323,1.08782,107130.0,107120.0,0.6599818]
[1748463637523,0.00154111,107140.0,107130.0,0.1866444]
[1748463637724,0.34154111,107140.0,107130.0,0.6576444]
[1748463637941,0.52816801,107140.0,107130.0,0.6576444]
[1748463638624,0.88896801,107140.0,107130.0,0.2968444]
[1748463638832,0.94506801,107140.0,107130.0,0.2988444]
[1748463639026,1.40324902,107140.0,107130.0,0.00212]
[1748463639234,1.40324902,107140.0,107120.0,0.0048]
[1748463639235,0.1866443,107130.0,107120.0,0.0048]
[1748463639436,0.1866792,107110.0,107100.0,0.00140045]
[1748463639634,2.16176021,107110.0,107100.0,0.00140045]
[1748463639835,2.16176021,107110.0,107090.0,0.00165042]
[1748463639836,0.1866966,107100.0,107090.0,0.00165042]
[1748463640030,1.29963761,107100.0,107090.0,0.00127751]
[1748463640327,1.29963761,107100.0,107070.0,0.00140094]
[1748463640328,0.1867316,107080.0,107070.0,0.00140094]
[1748463640535,0.186749,107070.0,107060.0,0.05749042]
[1748463640736,0.8043,107070.0,107060.0,0.05749042]
[1748463640937,0.991049,107070.0,107060.0,0.05749042]
[1748463641238,1.29953976,107070.0,107060.0,0.00026017]
[1748463641434,0.99129875,107070.0,107060.0,0.18690667]
[1748463641638,0.99129875,107070.0,107060.0,0.24072667]
[1748463641835,0.99129875,107070.0,107060.0,0.00026017]
[1748463642133,0.99129875,107070.0,107060.0,0.00326017]
[1748463642134,1.44293977,107070.0,107060.0,0.00326017]
[1748463642340,1.44293977,107070.0,107060.0,0.00314017]
[1748463642645,1.13469876,107070.0,107060.0,0.18990667]
[1748463642842,0.99129875,107070.0,107060.0,0.18990667]
[1748463643142,0.99129875,107070.0,107060.0,0.24570667]
[1748463643532,1.87453977,107070.0,107060.0,0.00414017]
[1748463643838,0.1867665,107060.0,107050.0,0.0028]
[1748463644031,1.40017444,107060.0,107050.0,0.0028]
[1748463644234,0.49504261,107040.0,107030.0,0.0586]
[1748463644433,0.2802321,107030.0,107020.0,0.0586]
[1748463644627,1.09068185,107030.0,107020.0,0.07144779]
[1748463645036,1.09068185,107030.0,107020.0,0.07146551]
[1748463645236,0.1868365,107020.0,107010.0,0.05634183]
[1748463645438,0.9970365,107020.0,107010.0,0.30179573]
[1748463645639,0.9970365,107020.0,107010.0,0.31470992]
[1748463645941,0.99728625,107020.0,107010.0,0.12785602]
[1748463646139,0.99728625,107020.0,107010.0,0.07317602]
[1748463646333,1.30552726,107020.0,107010.0,0.07305602]
[1748463646642,1.78932726,107020.0,107010.0,0.26002992]
[1748463646858,1.48108625,107020.0,107010.0,0.26012728]
[1748463647040,1.83932726,107020.0,107010.0,0.01327172]
[1748463647245,1.83932726,107020.0,107010.0,0.0133739]
[1748463647435,1.53108625,107020.0,107010.0,0.0172539]
[1748463647632,2.18277126,107020.0,107010.0,0.0173739]
[1748463647835,2.22734018,107020.0,107010.0,0.0213739]
[1748463648050,2.22734018,107020.0,107010.0,0.02157296]
[1748463648232,2.22734018,107020.0,107010.0,0.02162279]
[1748463648435,2.22734018,107020.0,107010.0,0.00414017]
[1748463648745,0.1868539,107010.0,107000.0,0.1028]
[1748463648934,1.49925491,107010.0,107000.0,0.1028]
[1748463649142,1.49925491,107010.0,107000.0,0.11628993]
[1748463649339,0.1869413,106960.0,106950.0,0.0585]
[1748463649536,0.87923294,106960.0,106950.0,0.2429588]
[1748463649737,0.69229164,106960.0,106950.0,0.2429588]
[1748463649933,0.74724139,106960.0,106950.0,0.2429588]
[1748463650141,0.74724139,106960.0,106950.0,0.2430788]
[1748463650740,0.74724139,106960.0,106950.0,0.3007788]
[1748463650944,0.33174139,106960.0,106950.0,0.3007788]
[1748463651138,0.06174139,106960.0,106950.0,0.96981981]
[1748463651339,0.06174139,106960.0,106950.0,0.97481981]
[1748463651538,0.06174139,106960.0,106950.0,0.6665788]
[1748463651845,0.72764101,107000.0,106990.0,0.1868889]
[1748463651846,0.001403,107000.0,106990.0,0.1868889]
[1748463652046,1.07250427,107000.0,106990.0,0.24475339]
[1748463652253,0.36028427,107000.0,106990.0,0.24475339]
[1748463652440,0.36028427,107000.0,106990.0,0.60555339]
[1748463652640,0.00028427,107000.0,106990.0,0.60555339]
[1748463653144,0.00028427,107000.0,106990.0,0.61655339]
[1748463653737,0.01028427,107000.0,106990.0,0.61655339]
[1748463653943,0.01128427,107000.0,106990.0,0.60655339]
[1748463655046,0.01128427,107000.0,106990.0,0.66285339]
[1748463657239,0.00128427,107000.0,106990.0,0.66285339]
[1748463658553,0.54895567,107000.0,106990.0,0.11516449]
[1748463658849,0.87895567,107000.0,106990.0,0.05928449]
[1748463659050,0.99405567,107000.0,106990.0,0.24617339]
[1748463659253,0.99405567,107000.0,106990.0,0.30307339]
[1748463659654,0.99605567,107000.0,106990.0,0.11618449]
[1748463659839,0.80918427,107000.0,106990.0,0.30307339]
[1748463660044,0.75278427,107000.0,106990.0,0.30207339]
[1748463660239,0.94265567,107000.0,106990.0,0.30207339]
[1748463661059,0.94265567,107000.0,106990.0,0.30207329]
[1748463661348,0.94265567,107000.0,106990.0,0.1276225]
[1748463661349,0.99805567,107000.0,106990.0,0.1276225]
[1748463662057,0.99805567,107000.0,106990.0,0.12763218]
[1748463662262,0.99805567,107000.0,106990.0,0.12776031]
[1748463662456,0.99805567,107000.0,106990.0,0.31464921]
[1748463663151,0.00528427,107000.0,106990.0,0.30207339]
[1748463663350,0.15528427,107000.0,106990.0,0.66287339]
[1748463663553,0.70295567,107000.0,106990.0,0.35817339]
[1748463663747,0.15528427,107000.0,106990.0,0.71897339]
[1748463664257,0.15528427,107000.0,106990.0,1.0372144]
[1748463664447,0.00528427,107000.0,106990.0,0.72897339]
[1748463665860,0.00979982,107000.0,106990.0,0.72897339]
[1748463666543,0.00979982,107000.0,106990.0,1.0372144]
[1748463667153,0.19667122,107000.0,106990.0,0.72897339]
[1748463667362,0.50667122,107000.0,106990.0,0.72885339]
[1748463667565,0.50667122,107000.0,106990.0,0.72897339]
[1748463667752,0.50667122,107000.0,106990.0,2.22897339]
[1748463667753,0.01979982,107000.0,106990.0,2.22897339]
[1748463667951,0.01979982,107000.0,106990.0,1.0372144]
[1748463668260,0.00979982,107000.0,106990.0,0.72897339]
[1748463668556,0.19667122,107000.0,106990.0,2.22897339]
[1748463668859,0.26667122,107000.0,106990.0,0.36805339]
[1748463669162,0.45667122,107000.0,106990.0,0.36817329]
[1748463669460,0.31337991,107000.0,106990.0,0.72897329]
[1748463669660,0.07979982,107000.0,106990.0,0.72897329]
[1748463669857,0.00979982,107000.0,106990.0,0.72885329]
[1748463670265,0.00979982,107000.0,106990.0,1.0272143]
[1748463670451,0.00979982,107000.0,106990.0,1.1872143]
[1748463670763,0.00014017,107010.0,107000.0,0.1868714]
[1748463670946,0.01391679,107020.0,107010.0,0.1868539]
[1748463671148,0.5141721,107030.0,107020.0,0.1868365]
[1748463671349,0.45759936,107030.0,107020.0,0.5476365]
[1748463671562,0.64441836,107030.0,107020.0,0.1868365]
[1748463671752,0.84441836,107030.0,107020.0,0.18758232]
[1748463671953,0.75832853,107030.0,107020.0,0.18758232]
[1748463672156,1.27860853,107030.0,107020.0,0.54850232]
[1748463672359,0.29818104,107030.0,107020.0,0.54850232]
[1748463672755,0.30164562,107030.0,107020.0,0.54850232]
[1748463672956,0.25835198,107030.0,107020.0,0.54650232]
[1748463673349,0.21440267,107030.0,107020.0,0.54650232]
[1748463673551,0.01465242,107030.0,107020.0,0.92194333]
[1748463673850,0.12955791,107040.0,107030.0,0.186819]
[1748463673851,0.00014017,107040.0,107030.0,0.186819]
[1748463674165,0.00014017,107040.0,107030.0,1.02586001]
[1748463674460,0.00014017,107040.0,107030.0,0.777519]
[1748463674655,0.01393052,107040.0,107030.0,0.777519]
[1748463674857,0.00114017,107040.0,107030.0,0.777519]
[1748463675254,0.18794177,107040.0,107030.0,0.777519]
[1748463675560,0.18794177,107040.0,107030.0,0.256719]
[1748463675561,0.30794177,107040.0,107030.0,0.256719]
[1748463676149,0.30794177,107040.0,107030.0,0.256839]
[1748463676964,0.54794177,107040.0,107030.0,0.256839]
[1748463677153,0.64595278,107040.0,107030.0,0.306739]
[1748463677360,0.64595278,107040.0,107030.0,0.0599]
[1748463677361,1.89729379,107040.0,107030.0,0.0599]
[1748463677561,1.89729379,107040.0,107030.0,0.246719]
[1748463677853,1.94057949,107040.0,107030.0,0.0599]
[1748463678057,0.186819,107030.0,107020.0,0.2440232]
[1748463678252,0.186819,107030.0,107020.0,0.3039365]
[1748463678253,1.05313001,107030.0,107020.0,0.3039365]
[1748463678655,1.05313001,107030.0,107020.0,0.3040565]
[1748463678857,1.36137102,107030.0,107020.0,0.3040565]
[1748463679367,1.05313001,107030.0,107020.0,0.3040565]
[1748463679664,1.36137102,107030.0,107020.0,0.00212]
[1748463679864,1.09641571,107030.0,107020.0,0.1889565]
[1748463680164,1.09641571,107030.0,107020.0,0.2491565]
[1748463680360,0.73561571,107030.0,107020.0,0.3074565]
[1748463680557,0.69233001,107030.0,107020.0,0.3074565]
[1748463680953,0.69233001,107030.0,107020.0,0.3064565]
[1748463681261,0.50551101,107030.0,107020.0,0.6672565]
[1748463681463,0.69235081,107030.0,107020.0,0.3054565]
[1748463681657,0.50553181,107030.0,107020.0,0.6662565]
[1748463681959,0.57935081,107030.0,107020.0,0.6662565]
[1748463682558,0.57935081,107030.0,107020.0,0.11862]
[1748463682752,1.36459182,107030.0,107020.0,0.00012]
[1748463682951,0.1868365,107020.0,107010.0,0.39940806]
[1748463683155,1.04991181,107020.0,107010.0,0.39940806]
[1748463683360,0.56481181,107020.0,107010.0,0.76020806]
[1748463683667,0.66481181,107020.0,107010.0,0.77020806]
[1748463683852,1.10164831,107020.0,107010.0,0.40952806]
[1748463684169,1.00674831,107020.0,107010.0,0.76032806]
[1748463684464,1.36350932,107020.0,107010.0,0.11926186]
[1748463684652,1.36350932,107020.0,107010.0,0.00166186]
[1748463684851,1.5493613,107020.0,107010.0,0.00166186]
[1748463685053,1.19858848,107020.0,107010.0,0.18963443]
[1748463685353,1.15622672,107020.0,107010.0,0.30493443]
[1748463685554,1.11344907,107020.0,107010.0,0.30481443]
[1748463685757,1.11344907,107020.0,107010.0,0.06068053]
[1748463685962,1.11344907,107020.0,107010.0,0.24753443]
[1748463686158,1.61993279,107020.0,107010.0,0.06068053]
[1748463686457,1.67733318,107020.0,107010.0,0.24753453]
[1748463686760,1.61993279,107020.0,107010.0,0.24753453]
[1748463686967,1.61993279,107020.0,107010.0,0.06068053]
[1748463687160,1.61993279,107020.0,107010.0,0.00278053]
[1748463687161,1.98557419,107020.0,107010.0,0.00278053]
[1748463687469,1.98557419,107020.0,107010.0,0.00266053]
[1748463687651,1.98557419,107020.0,107010.0,0.00278053]
[1748463687854,1.98557419,107020.0,107010.0,0.00266053]
[1748463688155,1.67733318,107020.0,107010.0,0.18963443]
[1748463688557,1.67733318,107020.0,107010.0,0.30243443]
[1748463688760,0.60817668,107020.0,107010.0,0.30243443]
[1748463688955,0.73761279,107020.0,107010.0,0.66323443]
[1748463689153,0.73761279,107020.0,107010.0,0.30243443]
[1748463689364,1.09841279,107020.0,107010.0,0.30243443]
[1748463689572,0.5941033,107020.0,107010.0,0.30243443]
[1748463689868,0.7809398,107020.0,107010.0,0.30243443]
[1748463690061,0.73762762,107020.0,107010.0,0.30243443]
[1748463690271,0.43569112,107020.0,107010.0,0.66323443]
[1748463690575,0.13,107020.0,107010.0,0.67323443]
[1748463690759,0.04331783,107030.0,107020.0,0.1868365]
[1748463690961,0.07,107030.0,107020.0,1.16680291]
[1748463691878,0.071,107030.0,107020.0,1.15680291]
[1748463692062,0.071,107030.0,107020.0,1.5402389]
[1748463692262,0.02029367,107040.0,107030.0,0.1868191]
[1748463692469,0.01605787,107040.0,107030.0,1.37678011]
[1748463692671,0.00465572,107040.0,107030.0,1.85590811]
[1748463692875,0.00465572,107040.0,107030.0,1.85490811]
[1748463693578,0.04336934,107080.0,107050.0,0.0466939]
[1748463693761,0.22,107080.0,107070.0,1.21659031]
[1748463693964,0.05570232,107100.0,107090.0,0.1867144]
[1748463694164,5e-08,107100.0,107090.0,2.44029491]
[1748463694375,0.14349022,107120.0,107110.0,0.1866795]
[1748463694572,0.08608983,107120.0,107110.0,1.41652051]
[1748463694868,0.08608983,107120.0,107110.0,2.05495026]
[1748463695273,0.27275193,107120.0,107110.0,0.86522925]
[1748463695466,1.01355193,107120.0,107110.0,0.31542925]
[1748463695661,0.71195193,107120.0,107110.0,0.12898106]
[1748463695863,1.3668623,107120.0,107110.0,0.06990106]
[1748463696069,1.7112183,107120.0,107110.0,0.01060106]
[1748463696269,0.1866796,107110.0,107100.0,0.00014017]
[1748463696475,2.09898861,107110.0,107100.0,0.01039835]
[1748463696669,2.43888467,107110.0,107100.0,0.01039835]
[1748463696864,2.43888467,107110.0,107090.0,0.18696335]
[1748463696865,0.186697,107100.0,107090.0,0.00024975]
[1748463697070,1.31283801,107100.0,107090.0,0.00024975]
[1748463697264,1.31283801,107100.0,107080.0,0.00140083]
[1748463697265,0.1867144,107090.0,107080.0,0.00140083]
[1748463697465,1.6117139,107090.0,107080.0,0.18751007]
[1748463698271,0.5439995,107090.0,107080.0,0.24361007]
[1748463698573,0.2375995,107090.0,107080.0,0.31031007]
[1748463698770,0.1204995,107090.0,107080.0,0.61855108]
[1748463699678,0.00014017,107100.0,107090.0,0.1867144]
[1748463699863,0.0135767,107120.0,107110.0,0.1866795]
[1748463700065,0.3961763,107130.0,107120.0,0.1866621]
[1748463700268,1.22346785,107130.0,107120.0,0.6031621]
[1748463700464,1.22346785,107130.0,107120.0,0.66081185]
[1748463700667,1.17680385,107130.0,107120.0,0.66081185]
[1748463701172,0.84083503,107130.0,107120.0,0.65981185]
[1748463701482,0.83631948,107130.0,107120.0,0.65981185]
[1748463701775,0.83831948,107130.0,107120.0,0.29901185]
[1748463702078,0.83631948,107130.0,107120.0,0.65981185]
[1748463702377,0.83831948,107130.0,107120.0,0.29901185]
[1748463702672,0.83831948,107130.0,107120.0,0.29801185]
[1748463702977,0.20267948,107130.0,107120.0,0.29801185]
[1748463703171,0.56347948,107130.0,107120.0,0.29801185]
[1748463703380,1.08255948,107130.0,107120.0,0.30081185]
[1748463703566,1.50920049,107130.0,107120.0,0.00304975]
[1748463703881,0.1866978,107100.0,107090.0,0.0006226]
[1748463704070,0.79762102,107100.0,107090.0,0.3011152]
[1748463704274,0.91592102,107100.0,107090.0,0.057]
[1748463704575,1.06572102,107100.0,107090.0,0.05712]
[1748463704775,0.1867501,107070.0,107060.0,0.36220106]
[1748463704974,1.0662496,107070.0,107060.0,0.05985131]
[1748463705171,1.5426496,107070.0,107060.0,0.05985131]
[1748463705473,1.5426496,107070.0,107060.0,0.18791871]
[1748463705673,1.2426496,107070.0,107060.0,0.05997131]
[1748463705979,1.2426496,107070.0,107060.0,0.24661871]
[1748463706174,1.2426496,107070.0,107060.0,0.24673871]
[1748463706375,1.2426496,107070.0,107060.0,0.66493871]
[1748463706376,0.6950995,107070.0,107060.0,0.66493871]
[1748463706579,0.7652095,107070.0,107060.0,0.61237972]
[1748463706889,0.7652095,107070.0,107060.0,0.97717972]
[1748463706890,0.0004995,107070.0,107060.0,0.97717972]
[1748463707078,0.0004995,107070.0,107060.0,0.61637972]
[1748463707274,0.1872502,107070.0,107060.0,0.98317972]
[1748463707582,0.0004995,107070.0,107060.0,0.98317972]
[1748463707776,0.1872502,107070.0,107060.0,0.67493871]
[1748463707974,0.0004995,107070.0,107060.0,0.67393871]
[1748463708269,0.5480501,107070.0,107060.0,0.31313871]
[1748463708471,0.2435501,107070.0,107060.0,0.31313871]
[1748463708670,0.0004995,107070.0,107060.0,0.67393871]
[1748463708871,0.0004995,107070.0,107060.0,0.99210714]
[1748463709075,0.1872502,107070.0,107060.0,0.68386613]
[1748463709269,0.1872502,107070.0,107060.0,0.32306613]
[1748463709468,0.55256575,107070.0,107060.0,0.32306613]
[1748463709681,0.60886575,107070.0,107060.0,0.32306613]
[1748463709875,0.66566575,107070.0,107060.0,0.32294613]
[1748463710083,0.66566575,107070.0,107060.0,0.13630298]
[1748463710275,0.30486575,107070.0,107060.0,0.32307098]
[1748463710473,0.66566575,107070.0,107060.0,0.32307098]
[1748463710679,0.30486575,107070.0,107060.0,0.3230709]
[1748463710876,0.66566575,107070.0,107060.0,0.3230709]
[1748463711072,0.30486575,107070.0,107060.0,0.1363029]
[1748463711274,0.67973693,107070.0,107060.0,0.13630526]
[1748463711473,0.67973693,107070.0,107060.0,0.32295316]
[1748463711675,0.67973693,107070.0,107060.0,0.32307301]
[1748463711876,0.67973693,107070.0,107060.0,0.32307502]
[1748463712489,0.67973693,107070.0,107060.0,0.323075]
[1748463712781,0.67973693,107070.0,107060.0,0.1363071]
[1748463712982,0.67973693,107070.0,107060.0,0.323075]
[1748463713187,0.70973693,107070.0,107060.0,0.323075]
[1748463713495,0.70973693,107070.0,107060.0,0.32307759]
[1748463713787,0.34893693,107070.0,107060.0,0.32307759]
[1748463713987,0.70973693,107070.0,107060.0,0.32308041]
[1748463714376,0.70973693,107070.0,107060.0,0.32308043]
[1748463714584,0.70973693,107070.0,107060.0,0.68388043]
[1748463714585,0.04908623,107070.0,107060.0,0.68388043]
[1748463714776,0.00501505,107070.0,107060.0,1.05218022]
[1748463714977,0.00501505,107070.0,107060.0,1.0621241]
[1748463715484,0.00501505,107070.0,107060.0,1.06212402]
[1748463715680,0.19176545,107070.0,107060.0,0.75388301]
[1748463715874,0.19176545,107070.0,107060.0,0.7538867]
[1748463716079,0.00501505,107070.0,107060.0,0.7538867]
[1748463716592,0.00501505,107070.0,107060.0,1.06212771]
[1748463716886,0.00501505,107070.0,107060.0,1.34213316]
[1748463717087,0.00501505,107070.0,107060.0,1.74553316]
[1748463717481,0.00501505,107070.0,107060.0,1.73558022]
[1748463717785,0.00501505,107070.0,107060.0,1.74553302]
[1748463718284,0.00501505,107070.0,107060.0,1.74628579]
[1748463718483,0.00501505,107070.0,107060.0,1.99628552]
[1748463718787,5e-08,107070.0,107060.0,2.66072679]
[1748463718979,5e-08,107070.0,107060.0,2.65076604]
[1748463719286,5e-08,107070.0,107060.0,2.41073184]
[1748463719688,5e-08,107070.0,107060.0,2.41073855]
[1748463719882,5e-08,107070.0,107060.0,2.40076604]
[1748463720079,5e-08,107070.0,107060.0,2.45213604]
[1748463720279,5e-08,107070.0,107060.0,2.46210969]
[1748463720475,5e-08,107070.0,107060.0,2.46210955]
[1748463720989,5e-08,107070.0,107060.0,2.46211605]
[1748463721390,5e-08,107070.0,107060.0,2.71211605]
[1748463721581,5e-08,107070.0,107060.0,2.82840356]
[1748463721905,0.00014017,107080.0,107070.0,0.1867504]
[1748463721906,2e-08,107080.0,107070.0,0.1867504]
[1748463722082,2e-08,107080.0,107070.0,1.91667142]
[1748463722285,2e-08,107080.0,107070.0,2.00008341]
[1748463722484,2e-08,107080.0,107070.0,2.12635336]
[1748463722778,2e-08,107080.0,107070.0,2.12635532]
[1748463723293,2e-08,107080.0,107070.0,2.12635539]
[1748463723593,2e-08,107080.0,107070.0,2.12635581]
[1748463723782,2e-08,107080.0,107070.0,2.13035581]
[1748463724391,2e-08,107080.0,107070.0,2.1303546]
[1748463724791,0.00012322,107100.0,107090.0,0.1867165]
[1748463725089,0.00090198,107110.0,107100.0,0.1866991]
[1748463725295,0.18758378,107110.0,107100.0,0.98664011]
[1748463725593,0.18758378,107110.0,107100.0,1.04708986]
[1748463725795,0.18758378,107110.0,107100.0,1.05707833]
[1748463726186,0.18758378,107110.0,107100.0,0.74883732]
[1748463726582,0.18758378,107110.0,107100.0,0.74883614]
[1748463726988,0.54838378,107110.0,107100.0,0.20133704]
[1748463727296,0.66408378,107110.0,107100.0,0.31303572]
[1748463727497,0.66408378,107110.0,107100.0,0.07055652]
[1748463727498,1.23460378,107110.0,107100.0,0.07055652]
[1748463727792,2.23492271,107110.0,107100.0,0.01023768]
[1748463727989,0.1866992,107100.0,107090.0,0.00076283]
[1748463728190,0.1867166,107090.0,107080.0,0.00140079]
[1748463728398,1.90063002,107090.0,107080.0,0.00077813]
[1748463728705,0.19124965,107080.0,107070.0,0.1867512]
[1748463728879,0.9900994,107080.0,107070.0,0.1867512]
[1748463729492,0.1867515,107070.0,107060.0,0.0624373]
[1748463729681,1.5355915,107070.0,107060.0,0.1916062]
[1748463729997,1.00218831,107070.0,107060.0,0.1916062]
[1748463730290,0.00024975,107070.0,107060.0,1.35494721]
[1748463730600,0.00024975,107070.0,107060.0,1.35506721]
[1748463730994,0.00024975,107070.0,107060.0,1.57506721]
[1748463731296,5e-08,107070.0,107060.0,1.57506721]
[1748463731484,5e-08,107070.0,107060.0,2.08930721]
[1748463731685,0.00076283,107090.0,107080.0,0.1867341]
[1748463731984,0.00076283,107090.0,107080.0,0.91577511]
[1748463732188,0.18747953,107090.0,107080.0,0.3097341]
[1748463732389,0.66987953,107090.0,107080.0,0.3097341]
[1748463732588,0.66987953,107090.0,107080.0,0.3098541]
[1748463732786,0.66987953,107090.0,107080.0,0.3097341]
[1748463733091,0.1867341,107080.0,107070.0,0.6875941]
[1748463733300,0.3083341,107080.0,107070.0,0.8105941]
[1748463733688,0.3083341,107080.0,107070.0,0.4497941]
[1748463733883,0.00451555,107080.0,107070.0,1.11883511]
[1748463734186,0.00451555,107080.0,107070.0,1.12895511]
[1748463734380,0.00451555,107080.0,107070.0,1.12995511]
[1748463734596,0.00451555,107080.0,107070.0,1.13095511]
[1748463734895,0.00451555,107080.0,107070.0,1.39095511]
[1748463736902,0.00451555,107080.0,107070.0,1.16095511]
[1748463737293,0.13491555,107080.0,107070.0,1.16095511]
[1748463737796,0.00451555,107080.0,107070.0,1.16095511]
[1748463737991,0.19124965,107080.0,107070.0,1.16095511]
[1748463738398,0.31944965,107080.0,107070.0,1.16095511]
[1748463738794,0.31944965,107080.0,107070.0,0.4251073]
[1748463739200,1.18824965,107080.0,107070.0,0.06802]
[1748463739501,2.21996052,107080.0,107070.0,0.002]
[1748463739705,2.21996052,107080.0,107070.0,0.00212]
[1748463739897,0.1867515,107070.0,107060.0,0.0048373]
[1748463740100,1.53935037,107070.0,107060.0,0.0048373]
[1748463740407,1.62450302,107070.0,107060.0,0.0048373]